bitfinex-derivatives/quotes_BTCF0:USTF0_20210406
["timestamp","ask_amount","ask_price","bid_price","bid_amount"]
[1617697290095,0.25452655,58811.0,58763.0,3.5952]
[1617697290235,0.25452655,58811.0,58792.0,1.0]
[1617697290439,0.4945,58810.0,58763.0,3.5952]
[1617697290700,0.4945,58810.0,58798.0,0.10725655]
[1617697291803,0.4945,58810.0,58809.0,1.0]
[1617697292610,0.4945,58810.0,58809.0,1.27]
[1617697292766,0.4945,58810.0,58809.0,1.37725655]
[1617697292966,0.4945,58810.0,58809.0,0.37725655]
[1617697293464,0.49349609,58810.0,58809.0,0.37725655]
[1617697293866,0.49349609,58810.0,58809.0,1.37725655]
[1617697294665,0.49349609,58810.0,58809.0,0.37725655]
[1617697295066,0.49349609,58810.0,58809.0,1.37725655]
[1617697298712,0.60075264,58810.0,58809.0,0.37725655]
[1617697298935,0.60075264,58810.0,58809.0,1.37725655]
[1617697299370,0.60075264,58810.0,58809.0,0.27]
[1617697299672,0.60075264,58810.0,58784.0,2.9296]
[1617697299804,0.60075264,58810.0,58798.0,1.0]
[1617697300072,0.60075264,58810.0,58797.0,1.0]
[1617697300482,0.60075264,58810.0,58799.0,0.27]
[1617697300682,0.10725655,58800.0,58799.0,1.0]
[1617697300883,0.10725655,58800.0,58798.0,0.11643]
[1617697301069,0.49349609,58810.0,58798.0,0.11643]
[1617697301070,0.49349609,58810.0,58798.0,0.38643]
[1617697301370,0.49349609,58810.0,58799.0,1.0]
[1617697301570,0.49349609,58810.0,58808.0,1.0]
[1617697301772,0.49349609,58810.0,58806.0,1.0]
[1617697302181,0.49349609,58810.0,58804.0,0.9998]
[1617697302374,0.49349609,58810.0,58794.0,0.10725655]
[1617697302375,0.49349609,58810.0,58803.0,1.0]
[1617697302774,0.49349609,58810.0,58801.0,1.0]
[1617697302775,0.10725655,58804.0,58801.0,1.0]
[1617697302993,0.10725655,58804.0,58794.0,0.10725655]
[1617697303181,0.10725655,58804.0,58803.0,1.0]
[1617697303374,0.10725655,58804.0,58802.0,0.27]
[1617697303575,0.23993655,58804.0,58802.0,0.27]
[1617697303783,0.23993655,58804.0,58794.0,0.10725655]
[1617697304674,0.10725655,58796.0,58795.0,0.27]
[1617697305076,0.10725655,58796.0,58795.0,1.27]
[1617697305878,0.10725655,58796.0,58795.0,0.27]
[1617697306177,0.10725655,58796.0,58795.0,1.27]
[1617697309679,0.10725655,58796.0,58795.0,0.27]
[1617697309978,0.10725655,58796.0,58795.0,1.27]
[1617697311182,0.10725655,58796.0,58795.0,0.27]
[1617697311479,0.10725655,58796.0,58795.0,1.41245]
[1617697311679,0.49349609,58810.0,58795.0,1.41245]
[1617697311881,0.49349609,58810.0,58795.0,0.41245]
[1617697312079,0.49349609,58810.0,58809.0,1.0]
[1617697312284,0.49349609,58810.0,58809.0,3.4606]
[1617697312479,0.49349609,58810.0,58809.0,3.84283]
[1617697312950,0.49349609,58810.0,58809.0,3.95008655]
[1617697313585,0.49349609,58810.0,58809.0,2.95008655]
[1617697313919,0.49349609,58810.0,58809.0,8.95008655]
[1617697314581,0.46659609,58810.0,58809.0,8.95008655]
[1617697314781,0.4554,58829.0,58828.0,0.10725655]
[1617697315112,0.4524,58829.0,58828.0,0.24035655]
[1617697315316,0.4524,58829.0,58828.0,6.51035655]
[1617697317485,0.4524,58829.0,58828.0,0.51035655]
[1617697317887,0.4524,58829.0,58828.0,1.37725655]
[1617697318732,0.45747841,58829.0,58828.0,1.37725655]
[1617697318887,0.56473496,58829.0,58828.0,1.37725655]
[1617697319190,0.55965655,58829.0,58828.0,1.37725655]
[1617697319590,0.56473508,58829.0,58828.0,0.37725655]
[1617697319891,0.55965655,58829.0,58828.0,1.37725655]
[1617697320688,0.55965655,58829.0,58828.0,0.37725655]
[1617697320926,0.55965655,58829.0,58828.0,0.27]
[1617697320927,0.56971414,58829.0,58828.0,0.27]
[1617697321090,0.56971414,58829.0,58828.0,1.27]
[1617697321290,0.85851734,58829.0,58828.0,1.27]
[1617697321489,0.85851734,58829.0,58828.0,1.0]
[1617697321690,0.85851734,58829.0,58828.0,0.27]
[1617697321888,1.65596319,58829.0,58828.0,0.27]
[1617697322088,1.65596319,58829.0,58821.0,1.0]
[1617697322089,1.85596319,58829.0,58821.0,1.0]
[1617697322532,1.85596319,58829.0,58828.0,0.27]
[1617697322690,1.85596319,58829.0,58818.0,1.0]
[1617697322906,0.10725655,58819.0,58818.0,1.0]
[1617697323109,0.10725655,58819.0,58817.0,1.0]
[1617697323307,0.10725655,58819.0,58809.0,2.4606]
[1617697323592,1.60725655,58819.0,58818.0,0.27]
[1617697323792,1.60725655,58819.0,58805.0,1.0]
[1617697323992,0.00508309,58810.0,58803.0,1.0]
[1617697324194,0.10324309,58810.0,58802.0,1.0]
[1617697324392,0.2,58809.0,58802.0,1.0]
[1617697324597,0.2,58809.0,58797.0,0.28246953]
[1617697324600,0.2,58809.0,58804.0,0.27]
[1617697324601,0.00508349,58805.0,58804.0,0.27]
[1617697324890,0.11234004,58805.0,58802.0,0.10725655]
[1617697325092,1.90640518,58805.0,58795.0,1.0]
[1617697325311,1.90640518,58805.0,58791.0,1.0]
[1617697325540,0.00508434,58799.0,58786.0,0.28310521]
[1617697326104,0.00508459,58793.0,58785.0,1.0]
[1617697326306,0.00508459,58793.0,58787.0,0.27]
[1617697326529,0.00508471,58791.0,58784.0,0.27]
[1617697327003,0.0050845,58794.0,58790.0,1.10725655]
[1617697327434,0.00508445,58795.0,58791.0,1.0]
[1617697327693,0.00508445,58795.0,58793.0,1.0]
[1617697328093,0.00508445,58795.0,58794.0,1.0]
[1617697328895,0.112341,58795.0,58794.0,1.0]
[1617697329697,0.112341,58795.0,58790.0,0.10725655]
[1617697330098,0.00508197,58794.0,58790.0,0.10725655]
[1617697330498,0.00508199,58792.0,58790.0,0.10725655]
[1617697330899,0.00508199,58792.0,58791.0,1.0]
[1617697331198,0.00508199,58792.0,58790.0,0.10725655]
[1617697331199,0.00508196,58793.0,58790.0,0.10725655]
[1617697331599,0.00508193,58794.0,58790.0,1.10725655]
[1617697331908,0.00508193,58794.0,58792.0,1.0]
[1617697332098,0.00508193,58794.0,58793.0,1.0]
[1617697332799,0.01006408,58794.0,58793.0,1.0]
[1617697333399,0.01006408,58794.0,58793.0,1.27]
[1617697333700,0.00508119,58801.0,58793.0,1.27]
[1617697334200,0.00508108,58802.0,58795.0,1.0]
[1617697334429,0.00508108,58802.0,58800.0,1.0]
[1617697334622,0.00508133,58800.0,58796.0,0.27]
[1617697334806,0.00508133,58800.0,58792.0,3.2249]
[1617697335004,0.10725655,58797.0,58792.0,3.2249]
[1617697335403,0.10725655,58797.0,58793.0,0.27]
[1617697335803,0.60077362,58796.0,58793.0,0.27]
[1617697336205,0.65958223,58794.0,58793.0,0.27]
[1617697336984,0.65958223,58794.0,58793.0,1.27]
[1617697337204,0.29981919,58794.0,58793.0,1.27]
[1617697337506,0.00509493,58794.0,58793.0,1.27]
[1617697338033,0.00509485,58796.0,58793.0,1.27]
[1617697338240,0.00509485,58796.0,58793.0,1.42553]
[1617697338410,0.00509485,58796.0,58794.0,1.0]
[1617697338604,0.00509485,58796.0,58795.0,1.0]
[1617697338805,0.01008974,58798.0,58795.0,1.27]
[1617697338806,0.00509478,58797.0,58795.0,1.27]
[1617697339205,0.01008974,58798.0,58795.0,1.27]
[1617697339206,0.00509464,58798.0,58795.0,0.27]
[1617697339533,0.00509464,58798.0,58797.0,1.0]
[1617697339746,0.00509437,58802.0,58797.0,1.28406536]
[1617697340107,0.00509388,58806.0,58800.0,1.0]
[1617697340607,0.00509385,58807.0,58803.0,0.28384729]
[1617697340806,0.00509385,58807.0,58805.0,1.13487]
[1617697341024,0.00509376,58808.0,58806.0,3.58085655]
[1617697341406,0.35966589,58813.0,58806.0,3.58085655]
[1617697341407,0.00509366,58811.0,58808.0,1.0]
[1617697341705,0.00509366,58811.0,58807.0,6.0]
[1617697341906,0.00509355,58813.0,58809.0,0.55382256]
[1617697342107,0.00509355,58813.0,58810.0,6.0]
[1617697342306,0.29972048,58816.0,58812.0,6.0]
[1617697342307,0.00509301,58816.0,58812.0,6.0]
[1617697342707,0.47108616,58817.0,58812.0,6.0]
[1617697342708,0.461,58817.0,58814.0,6.28349948]
[1617697342909,0.461,58817.0,58814.0,6.39075603]
[1617697343109,0.461,58817.0,58814.0,6.66075603]
[1617697343310,0.461,58817.0,58814.0,7.06084164]
[1617697343709,0.461,58817.0,58814.0,7.47601586]
[1617697344612,0.461,58817.0,58814.0,1.47601586]
[1617697344811,0.461,58817.0,58814.0,7.47601586]
[1617697345914,0.461,58817.0,58814.0,1.47601586]
[1617697346113,0.461,58817.0,58814.0,2.47601586]
[1617697346515,0.461,58817.0,58814.0,2.06084164]
[1617697347216,0.461,58817.0,58814.0,1.06084164]
[1617697347515,0.461,58817.0,58814.0,6.72097803]
[1617697348115,0.461,58817.0,58814.0,0.72097803]
[1617697348327,0.461,58817.0,58814.0,2.06031076]
[1617697348917,0.461,58817.0,58814.0,1.72097803]
[1617697349317,0.461,58817.0,58814.0,0.72097803]
[1617697349620,0.461,58817.0,58814.0,6.72097803]
[1617697350017,0.461,58817.0,58814.0,0.72097803]
[1617697350218,0.461,58817.0,58814.0,1.06072013]
[1617697350420,0.461,58817.0,58814.0,2.06072013]
[1617697351536,0.461,58817.0,58814.0,1.06072013]
[1617697351923,0.461,58817.0,58814.0,1.72097803]
[1617697352423,0.6175,58815.0,58814.0,0.72097803]
[1617697352686,0.6175,58815.0,58814.0,1.72097803]
[1617697352898,0.8175,58815.0,58814.0,1.37725655]
[1617697353022,0.72475655,58815.0,58814.0,1.37725655]
[1617697353724,1.02397446,58815.0,58814.0,1.37725655]
[1617697354025,1.02397446,58815.0,58814.0,0.37725655]
[1617697354625,1.3830309,58815.0,58814.0,0.37725655]
[1617697355126,1.3830309,58815.0,58814.0,3.46085655]
[1617697355326,1.13337435,58815.0,58814.0,4.59248655]
[1617697356125,0.48516894,58815.0,58814.0,4.59248655]
[1617697356526,0.48516894,58815.0,58814.0,3.59248655]
[1617697356728,0.48516894,58815.0,58814.0,9.59248655]
[1617697356729,0.4751,58815.0,58814.0,9.59248655]
[1617697357126,0.4751,58815.0,58814.0,9.79248655]
[1617697358027,0.4751,58815.0,58814.0,10.41576595]
[1617697360728,0.4497,58815.0,58814.0,4.41576595]
[1617697360932,0.4497,58815.0,58814.0,10.41576595]
[1617697362534,0.4497,58815.0,58814.0,4.21576595]
[1617697362934,0.4497,58815.0,58814.0,10.21576595]
[1617697363134,0.4497,58815.0,58814.0,9.87579537]
[1617697364035,0.4497,58815.0,58814.0,3.87579537]
[1617697364234,0.4497,58815.0,58814.0,9.87579537]
[1617697364435,0.4497,58815.0,58814.0,10.21468544]
[1617697364934,0.4497,58815.0,58814.0,9.87579537]
[1617697365336,0.4497,58815.0,58814.0,10.21465121]
[1617697366236,0.4497,58815.0,58814.0,4.21465121]
[1617697366436,0.4497,58815.0,58814.0,10.21465121]
[1617697366638,0.4497,58815.0,58814.0,4.21465121]
[1617697367037,0.4497,58815.0,58814.0,9.87579537]
[1617697367538,0.4497,58815.0,58814.0,3.87579537]
[1617697367739,0.4497,58815.0,58814.0,9.87579537]
[1617697367938,0.4497,58815.0,58814.0,10.21468729]
[1617697369538,0.424,58815.0,58814.0,10.21468729]
[1617697370642,0.424,58815.0,58814.0,9.87579537]
[1617697371443,0.424,58815.0,58814.0,10.21527907]
[1617697371951,0.424,58815.0,58814.0,10.26647907]
[1617697372149,0.424,58815.0,58814.0,4.26627907]
[1617697372349,0.424,58815.0,58814.0,10.26627907]
[1617697372544,0.424,58815.0,58814.0,10.13464907]
[1617697373143,0.3901,58815.0,58814.0,3.79516537]
[1617697373343,0.3648,58815.0,58814.0,4.79516537]
[1617697373943,0.3479,58815.0,58814.0,4.79516537]
[1617697374444,0.2963,58815.0,58814.0,4.79516537]
[1617697374646,0.2963,58815.0,58814.0,3.51185655]
[1617697374845,0.2963,58815.0,58814.0,4.51185655]
[1617697375347,0.1892,58815.0,58814.0,4.51185655]
[1617697375648,0.138,58815.0,58814.0,4.51185655]
[1617697375847,0.0425,58815.0,58814.0,4.51185655]
[1617697376047,0.0028,58815.0,58814.0,4.46065655]
[1617697376248,0.0028,58815.0,58814.0,4.74359979]
[1617697377047,0.0028,58815.0,58814.0,9.74359979]
[1617697377547,0.0028,58815.0,58814.0,3.74359979]
[1617697377749,0.0028,58815.0,58814.0,4.74359979]
[1617697378350,0.0028,58815.0,58814.0,0.65999979]
[1617697378552,0.0028,58815.0,58814.0,1.37705655]
[1617697379152,0.11005655,58815.0,58814.0,1.37705655]
[1617697382855,0.11005655,58815.0,58814.0,1.42835655]
[1617697384831,0.11005655,58815.0,58814.0,0.50128655]
[1617697384832,0.0028,58815.0,58814.0,0.50128655]
[1617697385159,0.0028,58815.0,58814.0,6.50128655]
[1617697385390,0.0028,58815.0,58814.0,6.7846789]
[1617697385660,0.01006723,58827.0,58826.0,3.6569]
[1617697385879,0.01006709,58828.0,58826.0,3.76776]
[1617697386074,0.01006709,58828.0,58826.0,5.03776]
[1617697386278,0.0505,58828.0,58827.0,1.0]
[1617697386762,0.0505,58828.0,58827.0,1.27]
[1617697387362,0.01006642,58832.0,58827.0,1.37725655]
[1617697387861,0.01006642,58832.0,58830.0,1.0]
[1617697388060,0.01006642,58832.0,58827.0,0.37725655]
[1617697388061,0.01006642,58832.0,58831.0,1.0]
[1617697388261,0.01006642,58832.0,58831.0,0.27]
[1617697388563,0.01006642,58832.0,58831.0,1.27]
[1617697388763,0.29911083,58832.0,58831.0,1.0]
[1617697388961,0.29911083,58832.0,58831.0,1.27]
[1617697389462,0.29911083,58832.0,58831.0,0.27]
[1617697389763,0.29911083,58832.0,58831.0,1.3217]
[1617697389962,0.29911083,58832.0,58831.0,1.0]
[1617697390163,0.29911083,58832.0,58831.0,1.27]
[1617697390664,0.29911083,58832.0,58831.0,0.27]
[1617697390864,0.29911083,58832.0,58831.0,1.27]
[1617697391067,0.6580355,58832.0,58831.0,1.0]
[1617697391265,0.76529205,58832.0,58831.0,1.0]
[1617697391565,0.40636738,58832.0,58831.0,1.27]
[1617697391967,0.96551326,58832.0,58831.0,0.27]
[1617697392170,2.46551326,58832.0,58831.0,0.27]
[1617697392428,2.60920326,58832.0,58827.0,0.10725655]
[1617697392780,2.80920326,58832.0,58827.0,0.10725655]
[1617697393167,0.6581217,58828.0,58827.0,0.10725655]
[1617697393575,0.7085217,58828.0,58827.0,0.10725655]
[1617697393976,1.14726436,58828.0,58827.0,0.10725655]
[1617697394170,2.64726436,58828.0,58827.0,0.10725655]
[1617697394374,2.83892205,58828.0,58827.0,0.10725655]
[1617697394573,2.78852205,58828.0,58827.0,0.10725655]
[1617697394780,1.57179901,58828.0,58827.0,0.10725655]
[1617697395001,1.57179901,58828.0,58827.0,1.10725655]
[1617697395377,1.59709284,58828.0,58827.0,1.10725655]
[1617697395772,1.09686436,58828.0,58827.0,1.10725655]
[1617697396471,1.09686436,58828.0,58827.0,0.10725655]
[1617697396871,1.09686436,58828.0,58827.0,1.10725655]
[1617697397572,0.6581217,58828.0,58827.0,1.10725655]
[1617697398574,0.85261957,58828.0,58827.0,1.23490655]
[1617697398775,0.85261957,58828.0,58827.0,0.23490655]
[1617697398974,0.85261957,58828.0,58827.0,1.23490655]
[1617697398975,0.6581217,58828.0,58827.0,1.23490655]
[1617697399875,0.6581217,58828.0,58827.0,0.10725655]
[1617697400274,0.6581217,58828.0,58827.0,1.10725655]
[1617697401175,1.09829741,58828.0,58827.0,0.10725655]
[1617697401379,1.09829741,58828.0,58827.0,1.10725655]
[1617697404480,0.6581217,58828.0,58827.0,1.10725655]
[1617697404680,0.6581217,58828.0,58827.0,1.37725655]
[1617697407186,0.4968217,58828.0,58827.0,1.37725655]
[1617697407387,0.29915529,58828.0,58827.0,9.56650288]
[1617697407612,0.25155529,58828.0,58827.0,9.56650288]
[1617697407786,0.01010092,58828.0,58827.0,9.56650288]
[1617697407988,0.44013996,58837.0,58827.0,9.56650288]
[1617697408214,0.44012712,58839.0,58827.0,9.56650288]
[1617697408385,0.44012712,58839.0,58836.0,1.0]
[1617697408591,0.44012712,58839.0,58838.0,1.0]
[1617697409086,0.44012712,58839.0,58838.0,0.27]
[1617697409286,0.44012712,58839.0,58838.0,0.37725655]
[1617697409501,0.44012712,58839.0,58838.0,1.10725655]
[1617697409786,0.44012712,58839.0,58838.0,1.37725655]
[1617697410488,0.44009949,58842.0,58838.0,1.37725655]
[1617697410889,0.92719625,58843.0,58838.0,0.37725655]
[1617697411296,0.92719625,58843.0,58842.0,1.0]
[1617697411599,0.4871,58843.0,58842.0,1.0]
[1617697411893,0.4871,58843.0,58842.0,1.27]
[1617697412693,0.4871,58843.0,58842.0,0.27]
[1617697413093,0.4871,58843.0,58842.0,1.0]
[1617697413394,0.92720296,58843.0,58842.0,1.27]
[1617697413892,0.92720296,58843.0,58842.0,1.0]
[1617697414093,0.92720296,58843.0,58842.0,1.27]
[1617697415293,1.03445951,58843.0,58842.0,1.27]
[1617697416096,1.03445951,58843.0,58842.0,0.27]
[1617697416297,1.03445951,58843.0,58842.0,1.27]
[1617697416498,1.03445951,58843.0,58842.0,1.0]
[1617697416699,1.03445951,58843.0,58842.0,1.27]
[1617697416899,1.03445951,58843.0,58842.0,4.1977]
[1617697419404,1.03445951,58843.0,58842.0,1.27]
[1617697421704,0.92720296,58843.0,58842.0,4.0413]
[1617697422706,0.4871,58843.0,58842.0,4.0413]
[1617697431214,0.43945357,58849.0,58842.0,4.0413]
[1617697431414,0.43945357,58849.0,58848.0,0.10725655]
[1617697431819,0.10725655,58858.0,58848.0,1.37725655]
[1617697431820,0.43944897,58850.0,58848.0,1.37725655]
[1617697432216,0.1635874,58849.0,58848.0,0.49337655]
[1617697432716,0.35956757,58849.0,58848.0,0.49337655]
[1617697432916,0.35956757,58849.0,58848.0,1.49337655]
[1617697433217,0.30996757,58849.0,58848.0,1.49337655]
[1617697433517,0.41614506,58849.0,58848.0,0.49337655]
[1617697433718,0.41614506,58849.0,58848.0,3.37867655]
[1617697433928,0.43937007,58857.0,58848.0,9.37867655]
[1617697434321,0.43936035,58866.0,58852.0,6.43781262]
[1617697434520,0.43936035,58866.0,58852.0,0.43781262]
[1617697434819,0.43936035,58866.0,58865.0,1.0]
[1617697435219,0.43936035,58866.0,58865.0,1.27]
[1617697435521,0.5466169,58866.0,58865.0,3.10675655]
[1617697435720,0.5466169,58866.0,58865.0,4.10675655]
[1617697436922,0.5466169,58866.0,58865.0,3.10675655]
[1617697437124,0.5466169,58866.0,58865.0,4.10675655]
[1617697437527,0.5466169,58866.0,58865.0,0.10725655]
[1617697437925,0.846248,58866.0,58865.0,0.10725655]
[1617697438225,1.04574243,58866.0,58865.0,1.10725655]
[1617697438524,1.09584243,58866.0,58865.0,1.10725655]
[1617697438826,1.04574243,58866.0,58865.0,1.10725655]
[1617697439126,0.5466169,58866.0,58865.0,1.20647655]
[1617697440427,0.5466169,58866.0,58865.0,1.47647655]
[1617697440630,0.84474866,58866.0,58865.0,4.32327655]
[1617697441027,0.84474866,58866.0,58865.0,3.32327655]
[1617697441327,0.84474866,58866.0,58865.0,4.32327655]
[1617697441630,0.73749211,58866.0,58865.0,4.32327655]
[1617697442430,0.29813176,58866.0,58865.0,4.32327655]
[1617697443842,0.34853176,58866.0,58865.0,4.32327655]
[1617697444133,0.29813176,58866.0,58865.0,3.32327655]
[1617697444331,0.29813176,58866.0,58865.0,1.37725655]
[1617697444634,0.29813176,58866.0,58865.0,1.27]
[1617697445838,0.29813176,58866.0,58865.0,4.8471]
[1617697446033,0.73448556,58866.0,58865.0,4.8471]
[1617697447334,0.73448556,58866.0,58865.0,3.8471]
[1617697447633,0.73448556,58866.0,58865.0,4.8471]
[1617697448236,0.29813176,58866.0,58865.0,4.8471]
[1617697448435,0.29813176,58866.0,58865.0,1.27]
[1617697449137,0.29813176,58866.0,58865.0,0.27]
[1617697449537,0.73550735,58866.0,58865.0,1.0]
[1617697451038,0.73550735,58866.0,58865.0,1.15828]
[1617697451438,0.29813176,58866.0,58865.0,1.15828]
[1617697452141,0.29813176,58866.0,58865.0,1.0]
[1617697453940,0.29813176,58866.0,58865.0,1.27]
[1617697456987,0.2,58865.0,58852.0,0.28980554]
[1617697457216,1.5,58864.0,58851.0,0.28952896]
[1617697457408,0.2,58863.0,58851.0,0.28952896]
[1617697457604,0.2,58863.0,58829.0,0.54045407]
[1617697457605,0.10725655,58850.0,58849.0,1.0]
[1617697457843,0.30725655,58850.0,58849.0,1.0]
[1617697458445,1.10077258,58850.0,58849.0,1.27]
[1617697459246,1.10077258,58850.0,58849.0,0.27]
[1617697459646,1.10077258,58850.0,58847.0,0.27]
[1617697460047,1.10077258,58850.0,58849.0,0.27]
[1617697460349,0.65852009,58848.0,58847.0,0.27]
[1617697460548,0.65852009,58848.0,58846.0,0.10725655]
[1617697460750,0.2,58849.0,58846.0,0.10725655]
[1617697460948,0.2,58847.0,58846.0,0.10725655]
[1617697461148,0.2,58847.0,58842.0,1.0]
[1617697461349,0.99358622,58847.0,58842.0,1.0]
[1617697461750,0.4066049,58843.0,58836.0,0.10725655]
[1617697462151,0.29935295,58842.0,58837.0,0.27]
[1617697462552,0.29935295,58842.0,58841.0,1.0]
[1617697463052,0.29935295,58842.0,58841.0,1.27]
[1617697463255,0.29935295,58842.0,58841.0,0.27]
[1617697463454,0.10725655,58843.0,58842.0,2.7963]
[1617697463655,0.10725655,58843.0,58842.0,2.90355655]
[1617697463856,0.10725655,58843.0,58842.0,3.90355655]
[1617697464055,0.10725655,58843.0,58842.0,4.17355655]
[1617697466365,0.10725655,58843.0,58842.0,4.22395655]
[1617697466557,0.10725655,58843.0,58842.0,4.17355655]
[1617697468260,0.10725655,58843.0,58842.0,0.37725655]
[1617697468659,0.10725655,58843.0,58842.0,1.37725655]
[1617697470060,0.10725655,58843.0,58842.0,0.37725655]
[1617697470266,0.10725655,58843.0,58842.0,0.42775655]
[1617697470461,0.10725655,58843.0,58842.0,1.37725655]
[1617697472465,0.10725655,58843.0,58842.0,0.37725655]
[1617697472767,0.10725655,58843.0,58842.0,1.37725655]
[1617697472967,0.40723062,58843.0,58842.0,1.37725655]
[1617697473468,0.40723062,58843.0,58842.0,0.37725655]
[1617697473667,0.29997407,58843.0,58842.0,0.37725655]
[1617697473866,0.29997407,58843.0,58842.0,9.65915655]
[1617697474369,0.10725655,58859.0,58842.0,9.65915655]
[1617697474370,0.2999519,58851.0,58842.0,9.93370257]
[1617697474767,0.2999519,58851.0,58844.0,6.0]
[1617697474968,0.2999519,58851.0,58845.0,0.27488213]
[1617697475167,0.2999519,58851.0,58850.0,6.10678]
[1617697475368,0.29989737,58858.0,58850.0,6.38158508]
[1617697475567,0.29989737,58858.0,58850.0,6.65158508]
[1617697475768,0.40715139,58859.0,58858.0,6.0]
[1617697475968,0.40715139,58859.0,58857.0,0.10725655]
[1617697476167,0.40715139,58859.0,58858.0,0.27]
[1617697476369,0.29988727,58860.0,58858.0,6.27]
[1617697476768,0.29988727,58860.0,58858.0,0.27]
[1617697476968,0.29988727,58860.0,58859.0,0.0515]
[1617697477168,0.29988727,58860.0,58858.0,0.27]
[1617697477371,0.4532,58862.0,58857.0,0.10725655]
[1617697477372,0.4532,58862.0,58859.0,1.27]
[1617697477373,0.81304428,58862.0,58859.0,1.27]
[1617697477770,0.81304428,58862.0,58861.0,1.0]
[1617697478269,0.81304428,58862.0,58861.0,1.27]
[1617697478475,0.81304428,58862.0,58861.0,1.3216]
[1617697478477,1.11312991,58862.0,58861.0,1.3216]
[1617697479471,1.11312991,58862.0,58861.0,1.27]
[1617697481373,1.11312991,58862.0,58861.0,1.3207]
[1617697481974,1.11312991,58862.0,58855.0,0.27949143]
[1617697481975,2.61312991,58862.0,58855.0,0.27949143]
[1617697482216,1.46662991,58862.0,58855.0,0.27949143]
[1617697482412,1.09991696,58856.0,58854.0,1.0]
[1617697482808,1.09991696,58856.0,58855.0,0.27]
[1617697483074,0.49995916,58857.0,58855.0,0.27]
[1617697483475,1.59996462,58856.0,58855.0,0.27]
[1617697483686,1.70722117,58856.0,58855.0,0.27]
[1617697483901,1.70722117,58856.0,58853.0,1.0]
[1617697484092,1.70722117,58856.0,58855.0,1.0]
[1617697484574,0.10725655,58856.0,58855.0,1.0]
[1617697484774,0.10725655,58856.0,58855.0,1.27]
[1617697484974,1.93363618,58856.0,58855.0,1.27]
[1617697485174,1.93363618,58856.0,58855.0,1.3211]
[1617697485374,1.707203,58856.0,58855.0,1.27]
[1617697485776,1.82720328,58856.0,58855.0,1.37725655]
[1617697485975,1.82720328,58856.0,58855.0,0.37725655]
[1617697486178,1.82720328,58856.0,58855.0,1.37725655]
[1617697486776,1.32724501,58856.0,58855.0,1.37725655]
[1617697486976,1.32724501,58856.0,58855.0,1.27]
[1617697488177,1.32724501,58856.0,58855.0,0.27]
[1617697488376,1.32724501,58856.0,58855.0,1.27]
[1617697488679,1.32724501,58856.0,58855.0,1.0]
[1617697488879,1.32724501,58856.0,58855.0,1.27]
[1617697489077,1.32724501,58856.0,58855.0,0.27]
[1617697489377,1.32724501,58856.0,58855.0,1.27]
[1617697489679,1.32724501,58856.0,58855.0,1.0]
[1617697489878,1.32724501,58856.0,58855.0,1.27]
[1617697490078,1.32724501,58856.0,58855.0,0.27]
[1617697490278,1.42772501,58856.0,58855.0,1.27]
[1617697490500,1.42772501,58856.0,58855.0,1.0]
[1617697490687,1.42772501,58856.0,58853.0,1.0]
[1617697490980,1.92819396,58856.0,58850.0,1.0]
[1617697491282,1.92819396,58856.0,58844.0,0.28702907]
[1617697491283,2.12819396,58856.0,58849.0,1.0]
[1617697491480,1.30111186,58851.0,58849.0,1.0]
[1617697491789,1.30111186,58851.0,58850.0,0.27]
[1617697491979,1.30111186,58851.0,58849.0,1.0]
[1617697491980,0.2,58851.0,58849.0,1.0]
[1617697492379,0.70046657,58851.0,58849.0,1.0]
[1617697492579,0.50046657,58851.0,58843.0,0.28918254]
[1617697492779,0.30031775,58850.0,58843.0,0.28918254]
[1617697492980,0.50046657,58851.0,58843.0,0.28918254]
[1617697493180,0.50046021,58852.0,58849.0,1.0]
[1617697493580,0.50046021,58852.0,58850.0,1.0]
[1617697493882,0.50046225,58854.0,58851.0,1.0]
[1617697494280,0.50046225,58854.0,58846.0,0.29025407]
[1617697494281,0.50046225,58854.0,58847.0,0.29111351]
[1617697494681,0.50046225,58854.0,58853.0,1.0]
[1617697495284,1.60156189,58854.0,58853.0,1.0]
[1617697498088,0.50046225,58854.0,58853.0,1.0]
[1617697498388,1.70871855,58854.0,58853.0,1.0]
[1617697498789,1.60155356,58854.0,58853.0,1.0]
[1617697499290,1.60155356,58854.0,58851.0,0.0506]
[1617697499490,0.09696,58854.0,58851.0,0.0506]
[1617697499691,1.91454089,58854.0,58853.0,1.0]
[1617697500090,1.91454089,58854.0,58851.0,1.0]
[1617697500292,1.69788098,58854.0,58850.0,1.0]
[1617697500592,1.69788098,58854.0,58845.0,0.29279243]
[1617697500593,1.10065708,58852.0,58849.0,1.0]
[1617697500994,0.60823031,58853.0,58850.0,1.0]
[1617697501697,0.7002623,58853.0,58850.0,1.0]
[1617697501994,1.10006873,58851.0,58849.0,1.0]
[1617697502193,1.10006873,58851.0,58843.0,1.29272171]
[1617697502396,1.10007734,58850.0,58843.0,1.0]
[1617697502797,0.66006752,58844.0,58842.0,0.29279671]
[1617697503394,0.44001169,58846.0,58843.0,1.27]
[1617697503794,0.44001169,58846.0,58845.0,1.0]
[1617697503994,0.44001169,58846.0,58843.0,0.27]
[1617697504197,0.44001169,58846.0,58844.0,1.0]
[1617697504396,1.10009927,58846.0,58845.0,1.0]
[1617697504897,1.10009927,58846.0,58841.0,0.29286939]
[1617697505301,0.5000139,58851.0,58841.0,0.29286939]
[1617697505302,0.13328,58849.0,58845.0,1.0]
[1617697505703,1.10013132,58846.0,58844.0,1.0]
[1617697505902,0.10725655,58845.0,58842.0,1.0]
[1617697506302,0.10725655,58845.0,58836.0,0.10725655]
[1617697506303,0.2,58844.0,58841.0,1.0]
[1617697506539,0.2,58844.0,58839.0,0.29249105]
[1617697506756,1.10014567,58843.0,58839.0,0.29249105]
[1617697507002,0.2,58842.0,58839.0,0.29249105]
[1617697507203,1.5,58841.0,58836.0,0.29224311]
[1617697507531,1.5,58839.0,58836.0,0.29224311]
[1617697507705,0.2,58838.0,58836.0,0.29224311]
[1617697507905,0.2,58838.0,58823.0,1.0]
[1617697507906,2.90757206,58837.0,58830.0,0.29248423]